bitfinex/quotes_ETHUSD_20260310
["timestamp","ask_amount","ask_price","bid_price","bid_amount"]
[1773115834105,0.002,2032.2,2031.8,0.001]
[1773115834320,0.002,2032.4,2032.0,0.48554083]
[1773115834607,0.002,2032.4,2032.1,0.48554083]
[1773115835369,0.002,2032.6,2032.3,0.48554083]
[1773115836366,0.002,2032.6,2032.4,1.71561365]
[1773115837004,0.002,2032.6,2032.4,1.23007282]
[1773115838807,0.002,2032.6,2032.4,1.71561365]
[1773115839175,0.47704613,2033.5,2032.6,0.48554083]
[1773115839396,0.47704613,2033.8,2033.0,0.48554083]
[1773115839975,0.47704613,2033.8,2032.7,0.48554083]
[1773115840177,0.47704613,2033.8,2032.7,1.86054083]
[1773115840479,0.47704613,2033.6,2032.8,1.7153716]
[1773115840693,0.47704613,2033.6,2032.9,0.48554083]
[1773115841985,0.47704613,2033.8,2032.9,0.48554083]
[1773115842193,0.47704613,2033.8,2032.8,4.62128729]
[1773115842194,0.47704613,2033.8,2032.8,2.60583077]
[1773115842492,0.47704613,2033.8,2032.9,0.48554083]
[1773115842691,0.47704613,2033.6,2033.0,1.22970978]
[1773115843910,0.47704613,2033.6,2033.0,1.71525061]
[1773115844405,0.47704613,2033.8,2033.1,0.48554083]
[1773115844610,0.47704613,2033.8,2033.2,1.71512965]
[1773115844977,0.1622302,2034.2,2033.6,3.39145652]
[1773115845185,0.47704613,2034.9,2034.1,0.48554083]
[1773115845418,0.47704613,2034.9,2034.2,3.87699735]
[1773115845596,0.47704613,2034.9,2034.3,0.48554083]
[1773115845797,1.70553373,2035.1,2034.3,0.48554083]
[1773115846219,1.2284876,2035.1,2034.3,0.48554083]
[1773115846515,0.47704613,2035.0,2034.1,0.48554083]
[1773115846691,1.2285616,2034.9,2034.2,1.22898436]
[1773115846885,5.39113847,2035.0,2034.3,0.48554083]
[1773115846886,1.70555778,2035.0,2034.3,0.48554083]
[1773115847204,0.47704613,2035.3,2034.4,0.48554083]
[1773115847522,0.47704613,2036.2,2035.2,3.39145652]
[1773115847720,0.47704613,2036.2,2035.2,3.87699735]
[1773115848021,0.47704613,2036.7,2035.3,0.48554083]
[1773115848222,0.47704613,2036.6,2035.3,0.48554083]
[1773115848723,0.47704613,2035.8,2035.0,0.48554083]
[1773115849097,0.47704613,2035.8,2035.0,1.71403418]
[1773115849287,1.22795815,2035.9,2035.1,0.48554083]
[1773115849699,0.47704613,2035.8,2034.9,1.22852553]
[1773115850799,1.22807879,2035.7,2034.9,1.22852553]
[1773115851344,1.22807879,2035.7,2035.0,0.46199215]
[1773115851515,1.69690433,2035.7,2034.8,0.46199215]
[1773115851821,0.46882554,2035.6,2034.6,1.69069981]
[1773115852038,0.46882554,2035.6,2034.4,1.22882202]
[1773115852207,0.46882554,2035.4,2034.4,1.22882202]
[1773115852516,0.46882554,2035.4,2034.3,1.69085892]
[1773115852929,0.46882554,2035.2,2034.2,2.57998069]
[1773115853097,0.46882554,2035.2,2034.1,4.43456572]
[1773115853301,0.46882554,2035.2,2034.1,1.69102179]
[1773115853518,0.46882554,2035.2,2034.1,0.46199215]
[1773115853719,0.46882554,2035.2,2034.0,1.22907625]
[1773115854110,0.46882554,2035.2,2034.0,1.6910684]
[1773115854939,0.46882554,2035.0,2034.0,1.6910684]
[1773115855234,0.46882554,2035.0,2034.0,0.46199215]
[1773115855430,0.46882554,2034.9,2033.8,2.58320135]
[1773115855636,0.46882554,2034.9,2033.8,2.58322121]
[1773115855833,3.39145652,2035.0,2033.3,0.46199215]
[1773115855834,0.46882554,2034.7,2033.3,0.46199215]
[1773115856038,0.46882554,2034.6,2033.5,0.46199215]
[1773115857207,0.46882554,2034.4,2033.2,5.38019112]
[1773115857603,0.46882554,2034.4,2033.7,0.001]
[1773115858510,0.46882554,2034.3,2033.7,0.001]
[1773115858719,0.46882554,2034.3,2033.5,0.001]
[1773115859844,3.39145652,2034.1,2033.5,0.001]
[1773115860135,0.46882554,2034.0,2033.5,0.001]
[1773115860514,4.67545652,2034.1,2033.2,0.001]
[1773115860515,0.46882554,2033.8,2033.2,0.001]
[1773115860912,3.86028206,2033.8,2033.2,0.001]
[1773115861144,0.46882554,2033.7,2032.6,1.69190875]
[1773115861932,0.46882554,2033.5,2032.6,1.69190875]
[1773115862263,0.46882554,2033.5,2032.7,0.46199215]
[1773115862466,2.63795989,2033.9,2033.0,3.85344867]
[1773115862610,2.63795989,2033.9,2033.1,0.46199215]
[1773115862811,1.69791443,2034.1,2033.1,0.46199215]
[1773115863216,4.91545591,2034.4,2032.6,1.2299166]
[1773115863217,1.697691,2034.4,2033.4,0.46199215]
[1773115863545,0.47926069,2034.2,2033.1,0.46042992]
[1773115864109,1.70830547,2034.1,2033.2,1.22958882]
[1773115865048,0.47926069,2034.0,2033.2,1.22958882]
[1773115865349,0.47926069,2033.8,2032.9,1.22977027]
[1773115866950,1.70848887,2033.8,2032.9,0.46042992]
[1773115867717,0.47926069,2034.1,2033.1,3.39145652]
[1773115867949,1.2289883,2034.2,2033.2,0.46042992]
[1773115868117,1.22897023,2034.3,2033.2,0.46042992]
[1773115868443,1.70823092,2034.3,2033.2,0.46042992]
[1773115868817,1.70823092,2034.3,2033.4,0.46042992]
[1773115870135,0.47926069,2034.2,2033.4,0.46042992]
[1773115870832,1.22904478,2034.1,2033.5,1.22940742]
[1773115871138,0.002,2034.0,2033.5,1.22940742]
[1773115871338,0.002,2034.0,2033.2,5.37857656]
[1773115871919,0.002,2034.0,2033.4,0.46042992]
[1773115872552,0.002,2034.2,2033.7,0.46042992]
[1773115872950,0.002,2034.2,2033.8,1.22922607]
[1773115875165,0.48126069,2034.2,2033.3,0.46042992]
[1773115876663,0.47926069,2034.0,2033.1,1.23064561]
[1773115876866,0.47926069,2034.0,2033.1,1.69107553]
[1773115877049,1.7083761,2034.0,2033.2,0.46042992]
[1773115878039,1.23103192,2034.2,2033.2,0.46042992]
[1773115878957,1.23103192,2034.2,2033.4,0.46042992]
[1773115879150,0.002,2034.2,2033.4,0.46042992]
[1773115881368,0.48126069,2034.2,2033.4,1.68986995]
[1773115883277,1.22904478,2034.1,2033.4,1.68986995]
[1773115883485,1.70830547,2034.1,2033.4,0.46042992]
[1773115883783,0.47926069,2034.0,2033.3,1.68995827]
[1773115884981,0.47926069,2034.0,2033.4,0.001]
[1773115885181,0.48126069,2034.0,2033.4,0.001]
[1773115885483,1.71039158,2034.0,2033.4,0.001]
[1773115887664,0.48126069,2034.0,2033.4,0.46142992]
[1773115888675,0.002,2034.0,2033.4,0.46142992]
[1773115888851,1.23111381,2034.0,2033.4,0.46142992]
[1773115889695,0.002,2034.0,2033.5,1.22940742]
[1773115890956,0.48126069,2034.0,2033.4,0.001]
[1773115891280,0.48126069,2034.0,2033.4,1.23045545]
[1773115891660,0.48126069,2034.0,2033.4,1.69088537]
[1773115891855,0.002,2034.0,2033.5,0.46042992]
[1773115892072,1.23110692,2034.0,2033.5,0.46042992]
[1773115892500,1.71036761,2034.0,2033.5,0.46042992]
[1773115892987,1.71040004,2034.0,2033.4,1.23045545]
[1773115893495,1.71040004,2034.0,2033.4,1.23045713]
[1773115893696,1.71040004,2034.0,2033.4,1.68110087]
[1773115896856,0.45126613,2033.9,2033.4,0.45164374]
[1773115897199,0.45126613,2033.9,2033.4,1.68110957]
[1773115897501,0.002,2033.8,2033.6,0.001]
[1773115899068,0.45326613,2033.8,2033.6,0.001]
[1773115899265,0.45326613,2033.8,2033.4,0.001]
[1773115899786,0.002,2033.8,2033.4,0.45164374]
[1773115900766,0.002,2034.2,2033.8,0.45064374]
[1773115901777,0.002,2034.2,2034.0,0.45064374]
[1773115903593,0.002,2034.5,2034.1,0.12]
[1773115903794,0.45126613,2035.2,2034.4,0.45064374]
[1773115903977,0.008,2035.1,2034.4,0.45064374]
[1773115905796,0.004,2035.0,2034.6,0.45064374]
[1773115906099,0.004,2035.3,2034.6,0.45064374]
[1773115906294,0.008,2035.3,2034.7,0.45064374]
[1773115906689,0.008,2035.2,2034.7,0.45064374]
[1773115906889,0.008,2035.5,2034.7,0.45064374]
[1773115907198,0.45526613,2035.4,2034.7,0.45064374]
[1773115907904,0.008,2035.3,2034.8,1.67926571]
[1773115908394,0.008,2035.3,2034.8,1.22862197]
[1773115909206,1.67951187,2035.5,2034.8,1.67926571]
[1773115909207,0.008,2035.2,2034.8,1.67926571]
[1773115909405,0.008,2035.4,2034.8,1.67926571]
[1773115909570,0.004,2035.4,2034.8,1.67926571]
[1773115910588,0.002,2035.1,2034.8,1.67926571]
[1773115911179,0.002,2035.1,2034.9,0.45064374]
[1773115911378,0.002,2035.3,2034.9,0.45064374]
[1773115911607,0.008,2035.2,2034.9,0.45064374]
[1773115912117,0.45126613,2035.5,2034.9,0.45064374]
[1773115912280,0.004,2035.4,2035.0,1.69177229]
[1773115912604,0.004,2035.4,2035.1,0.46327107]
[1773115913179,0.002,2035.6,2035.1,0.46327107]
[1773115914389,0.002,2035.6,2034.7,0.46327107]
[1773115914715,0.45347674,2035.6,2034.9,0.46327107]
[1773115916719,0.45347674,2035.6,2035.0,1.69177229]
[1773115917980,0.45147674,2035.5,2034.8,0.46327107]
[1773115918586,1.67973654,2035.4,2034.9,1.2285616]
[1773115918786,0.45147674,2035.3,2034.9,1.2285616]
[1773115919520,0.45147674,2035.3,2034.5,0.46327107]
[1773115920420,0.002,2035.6,2034.7,0.46327107]
[1773115920718,0.002,2035.6,2034.7,5.37792956]
[1773115920719,0.45147674,2035.5,2034.7,5.37792956]
[1773115920907,0.45147674,2035.5,2034.7,1.69195343]
[1773115921287,0.45147674,2035.5,2034.8,0.46327107]
[1773115921487,0.002,2035.6,2035.0,0.46327107]
[1773115921689,0.45147674,2036.1,2035.3,0.46327107]
[1773115922406,1.67931864,2036.1,2035.3,0.46327107]
[1773115922596,0.45147674,2035.8,2035.1,1.22844086]
[1773115922802,0.45147674,2036.1,2035.2,0.46327107]
[1773115923317,0.002,2035.3,2035.2,0.46327107]
[1773115923818,0.002,2035.3,2035.1,1.22844086]
[1773115924017,0.002,2035.3,2035.1,1.6886207]
[1773115924205,0.002,2035.6,2035.2,0.46017984]
[1773115924919,0.002,2035.6,2035.0,0.46017984]
[1773115926627,0.002,2035.6,2035.1,1.22844086]
[1773115927357,0.002,2035.6,2035.1,1.6886207]
[1773115927621,0.002,2035.6,2035.2,0.46017984]
[1773115928628,0.002,2035.6,2035.3,1.22832014]
[1773115930724,0.002,2035.6,2034.9,1.68868106]
[1773115930725,0.49732428,2035.6,2034.9,1.68868106]
[1773115930922,0.49732428,2035.6,2034.9,1.68869378]
[1773115931799,0.49732428,2035.6,2034.9,0.46017984]
[1773115932005,0.49732428,2035.6,2034.9,1.22854099]
[1773115932511,0.49732428,2035.6,2034.7,1.68982882]
[1773115932707,1.22819945,2035.5,2034.7,1.68982882]
[1773115932930,0.49532428,2035.4,2034.7,1.68982882]
[1773115934032,0.49532428,2035.4,2034.7,1.22967203]
[1773115934529,0.49532428,2035.4,2034.7,0.001]
[1773115934728,0.49532428,2035.4,2034.7,1.22967848]
[1773115935031,0.49532428,2035.2,2034.7,0.001]
[1773115935402,0.49532428,2035.2,2035.1,0.001]
[1773115935940,0.49532428,2035.2,2034.9,0.001]
[1773115937206,1.72375234,2035.2,2034.9,0.001]
[1773115937402,0.49532428,2035.2,2034.9,0.001]
[1773115937607,1.22835888,2035.3,2034.9,0.001]
[1773115937608,1.22832466,2035.3,2034.9,0.001]
[1773115938208,0.002,2035.4,2034.9,0.46117984]
[1773115938731,0.002,2035.4,2035.0,0.46017984]
[1773115939240,0.002,2035.4,2035.1,1.22844086]
[1773115939413,0.002,2035.6,2035.2,0.46017984]
[1773115941136,0.004,2035.6,2035.2,0.46017984]
[1773115941447,0.004,2035.6,2035.0,1.22850122]
[1773115941733,0.002,2035.5,2034.9,1.68969745]
[1773115942138,0.002,2035.4,2035.2,0.46017984]
[1773115942306,0.002,2035.4,2035.0,0.46017984]
[1773115942506,0.002,2035.3,2035.0,0.46017984]
[1773115942710,0.002,2035.5,2035.0,0.46017984]
[1773115943340,0.002,2035.5,2035.0,1.68865575]
[1773115943540,0.002,2035.5,2035.0,1.22847591]
[1773115944620,0.002,2035.5,2034.9,1.68969467]
[1773115944924,0.002,2035.5,2035.0,0.46017984]
[1773115945322,0.002,2035.5,2035.1,1.22844086]
[1773115945545,0.002,2035.5,2035.2,0.46017984]
[1773115947245,1.7023302,2036.3,2035.2,0.46017984]
[1773115947453,0.002,2035.8,2035.4,0.46017984]
[1773115948137,0.002,2035.7,2035.4,0.46017984]
[1773115948318,0.47661327,2036.1,2035.4,0.46017984]
[1773115948519,0.002,2036.0,2035.4,0.46017984]
[1773115948726,0.002,2036.2,2035.4,0.46017984]
[1773115949854,0.47661327,2036.1,2035.3,1.68849998]
[1773115950451,0.002,2035.5,2035.4,0.46017984]
[1773115952450,0.47461327,2036.1,2035.4,1.2282598]
[1773115952451,1.70249971,2036.1,2035.4,1.2282598]
[1773115952652,0.002,2036.0,2035.4,1.68843964]
[1773115954029,0.002,2036.0,2035.5,0.46782876]
[1773115954552,0.002,2036.0,2035.6,1.22813912]
[1773115954854,0.467027,2036.0,2035.3,1.22832014]
[1773115955229,0.467027,2036.0,2035.3,1.6961489]
[1773115955432,0.467027,2036.0,2035.4,0.46782876]
[1773115955857,0.467027,2036.0,2035.3,1.22832014]
[1773115956651,1.22994055,2036.0,2035.4,0.46782876]
[1773115956856,0.467027,2035.9,2035.2,0.46882876]
[1773115958353,0.465027,2035.9,2035.2,0.46882876]
[1773115958726,0.465027,2036.3,2035.3,1.22832014]
[1773115959056,0.465027,2036.4,2035.4,0.46782876]
[1773115959256,0.467027,2036.4,2035.4,0.46782876]
[1773115959559,0.465027,2036.2,2035.4,0.46782876]
[1773115960455,0.465027,2036.0,2035.3,1.22832014]
[1773115960860,0.465027,2035.4,2035.0,0.001]
[1773115961045,0.465027,2035.4,2034.7,0.001]
[1773115961256,0.465027,2035.4,2034.7,1.22967715]
[1773115961529,0.465027,2035.6,2034.8,0.46782876]
[1773115961860,0.465027,2035.8,2034.8,0.46782876]
[1773115962059,0.465027,2035.8,2034.9,0.46782876]
[1773115963063,1.22807879,2035.7,2035.0,0.46782876]
[1773115963646,1.69310579,2035.7,2035.0,0.46782876]
[1773115963842,0.465027,2035.6,2035.0,0.46782876]
[1773115964043,0.465027,2035.6,2035.0,0.46882876]
[1773115965043,1.22819945,2035.5,2035.0,0.46882876]
[1773115965455,1.22819945,2035.5,2035.0,1.69732208]
[1773115965902,0.002,2036.0,2035.4,0.46782876]
[1773115966189,1.69494066,2036.0,2035.1,0.46782876]
[1773115967157,1.69494066,2036.0,2035.2,1.69620926]
[1773115968071,1.69494066,2036.0,2035.3,0.46782876]
[1773115968273,1.6949455,2036.0,2035.3,0.46782876]
[1773115968876,0.467027,2036.0,2035.3,0.46782876]
[1773115969055,0.467027,2036.0,2035.5,0.46782876]
[1773115969056,0.002,2036.0,2035.5,0.46782876]
[1773115972167,0.002,2036.0,2035.5,1.69598349]
[1773115975895,0.002,2036.0,2035.6,0.47694078]
[1773115976768,0.002,2036.0,2035.6,1.70504125]
[1773115977500,0.002,2036.0,2035.5,1.22815086]
[1773115977883,0.002,2036.0,2035.5,1.22915086]
[1773115978083,0.002,2035.8,2035.5,0.001]
[1773115978283,0.4739244,2035.8,2035.5,0.001]
[1773115978690,0.4739244,2035.8,2035.3,0.001]
[1773115979396,1.22807879,2035.7,2035.3,0.001]
[1773115979603,1.7019912,2035.8,2035.3,0.001]
[1773115980398,0.4719244,2035.7,2035.3,0.001]
[1773115980915,1.7379244,2035.7,2035.3,0.001]
[1773115981266,2.96605255,2035.7,2035.3,0.001]
[1773115984607,0.47016867,2035.6,2035.3,0.001]
[1773115985397,1.22819945,2035.5,2035.3,0.001]
[1773115985694,1.266,2035.7,2035.3,0.001]
[1773115985875,2.49408489,2035.7,2035.3,0.001]
[1773115986077,0.002,2035.8,2035.3,0.47931022]
[1773115986317,1.267,2035.8,2035.3,0.47931022]
[1773115987513,1.267,2035.8,2035.4,1.2282598]
[1773115987932,1.267,2035.8,2035.4,1.70657002]
[1773115988226,0.002,2035.8,2035.3,0.47931022]
[1773115988431,1.23003055,2035.8,2035.3,1.70761128]
[1773115988597,0.002,2035.8,2035.3,1.70761128]
[1773115988802,0.002,2035.8,2035.4,0.47831022]
[1773115989434,0.002,2035.8,2035.5,1.22819945]
[1773115989830,0.002,2035.8,2035.6,0.47831022]
[1773115990131,1.22990066,2036.0,2035.7,0.47831022]
[1773115990132,0.002,2036.0,2035.7,0.47831022]
[1773115990311,0.002,2036.0,2035.5,1.70650967]
[1773115990629,1.2299032,2036.0,2035.5,1.70650967]
[1773115990939,1.2299032,2036.0,2035.3,0.47931022]
[1773115991105,0.47016867,2035.9,2035.3,0.47931022]
[1773115991299,0.47016867,2035.9,2035.3,1.70762309]
[1773115991575,1.22801846,2035.8,2035.5,0.001]
[1773115991738,0.002,2035.6,2035.5,0.001]
[1773115999009,0.002,2035.6,2035.5,0.47931022]
[1773116000038,0.002,2035.6,2035.5,0.001]
[1773116001610,0.002,2035.6,2035.3,0.47931022]
[1773116004741,0.002,2035.6,2035.3,1.7076234]
[1773116005042,0.002,2035.6,2035.4,0.47831022]
[1773116005540,0.002,2035.6,2035.5,0.47931022]
[1773116006110,0.002,2035.6,2035.5,0.001]
[1773116006729,0.002,2035.6,2035.5,0.47931022]
[1773116008045,0.002,2035.6,2035.5,0.001]
[1773116008433,0.47216867,2035.6,2035.3,0.001]
[1773116008639,0.002,2035.6,2035.3,0.47931022]
[1773116009846,0.47016867,2035.5,2035.0,0.47931022]
[1773116010045,0.47016867,2035.5,2035.0,1.70780112]
[1773116010530,1.2282598,2035.4,2035.0,0.001]
[1773116010728,0.47016867,2035.3,2035.0,0.001]
[1773116010944,1.266,2035.4,2035.1,0.47831022]
[1773116011249,0.002,2035.6,2035.1,0.47831022]
[1773116012652,0.002,2035.6,2035.3,0.47831022]
[1773116014553,0.002,2035.6,2035.4,1.2282598]
[1773116014751,0.002,2035.6,2035.4,1.71918403]
[1773116018657,0.002,2035.6,2035.5,0.001]
[1773116021334,0.002,2035.6,2035.5,1.72012368]
[1773116021959,0.002,2035.6,2035.5,0.49192423]
[1773116024659,0.002,2035.6,2035.5,1.72012368]
[1773116026063,0.002,2035.6,2035.5,0.49192423]
[1773116026231,0.002,2035.6,2035.5,1.72012368]
[1773116027461,0.002,2035.6,2035.5,0.49192423]
[1773116027755,0.002,2035.6,2035.5,1.72012368]
[1773116029258,0.002,2035.6,2035.5,0.49192423]
[1773116032064,0.002,2035.6,2035.5,0.001]
[1773116032264,0.47293551,2035.6,2035.3,0.001]
[1773116032437,0.47293551,2035.6,2035.3,0.47761707]
[1773116034055,0.002,2035.6,2035.3,0.47761707]
[1773116034476,0.47293551,2035.6,2035.3,0.47761707]
[1773116034649,0.47293551,2035.6,2035.1,0.47661707]
[1773116034844,0.47293551,2035.6,2035.0,0.47761707]
[1773116035044,0.47293551,2035.6,2035.0,1.22950005]
[1773116035467,0.47293551,2035.6,2034.8,0.001]
[1773116035777,0.47293551,2035.6,2034.9,0.47661707]
[1773116036674,0.47093551,2035.4,2034.9,0.47661707]
[1773116036877,0.47093551,2035.3,2034.9,0.47661707]
[1773116037047,0.47093551,2035.3,2034.9,1.70513606]
[1773116037247,0.47093551,2035.3,2034.9,0.47661707]
[1773116040651,1.265,2035.4,2035.0,1.82835373]
[1773116040854,1.265,2035.4,2035.1,0.47661707]
[1773116042382,0.002,2035.6,2035.1,0.47661707]
[1773116042548,0.002,2035.6,2035.3,0.47661707]
[1773116043150,0.47293551,2035.8,2035.5,0.47661707]
[1773116043151,0.002,2035.8,2035.5,0.47661707]
[1773116043853,0.002,2035.9,2035.5,0.4664225]
[1773116044185,0.47500559,2035.9,2035.5,0.4664225]
[1773116044364,0.47500559,2035.9,2035.3,0.4664225]
[1773116044564,0.47500559,2035.9,2035.4,1.2282598]
[1773116044756,0.47500559,2035.9,2035.5,0.4664225]
[1773116046471,0.002,2035.9,2035.5,0.4664225]
[1773116046675,0.002,2035.9,2035.6,1.69456162]
[1773116047281,0.002,2035.9,2035.7,0.4664225]
[1773116048674,0.002,2035.9,2035.8,1.69444096]
[1773116049385,1.264,2036.3,2035.9,0.4664225]
[1773116049583,2.49171854,2036.3,2035.9,0.4664225]
[1773116049785,1.264,2036.3,2035.9,0.4664225]
[1773116050359,2.49171902,2036.3,2035.9,0.4664225]
[1773116050574,1.73700559,2036.3,2035.9,0.4664225]
[1773116050780,0.47300559,2036.4,2036.1,0.4664225]
[1773116051102,0.47300559,2036.4,2036.0,0.4664225]
[1773116051385,1.70060356,2036.5,2036.0,0.4664225]
[1773116051604,0.47300559,2036.4,2036.0,0.4664225]
[1773116053587,0.47300559,2036.4,2036.0,1.69430396]
[1773116053974,4.91014493,2036.6,2036.2,0.4664225]
[1773116053975,0.47300559,2036.6,2036.2,0.4664225]
[1773116054281,0.47300559,2036.7,2036.2,0.4664225]
[1773116055985,0.47300559,2036.7,2036.2,1.69416188]
[1773116055986,0.47300559,2036.6,2036.2,1.69416188]
[1773116056163,0.002,2036.4,2036.2,1.69416188]
[1773116056791,0.002,2036.4,2036.2,0.4664225]
[1773116057091,0.002,2036.4,2036.1,0.4664225]
[1773116057490,0.47500559,2036.4,2035.9,1.69534801]
[1773116058286,0.47300559,2036.3,2035.9,0.001]
[1773116058692,0.47300559,2036.1,2035.7,0.001]
[1773116059098,0.47300559,2036.1,2035.4,0.4674225]
[1773116059376,0.47300559,2036.1,2035.4,1.69567394]
[1773116059588,0.47300559,2036.1,2035.4,0.001]
[1773116059589,0.47300559,2035.8,2035.4,0.001]
[1773116060262,1.70108438,2035.7,2035.4,0.001]
[1773116060463,0.47300559,2035.7,2035.4,0.001]
[1773116062562,0.47300559,2035.6,2035.1,0.4674225]
[1773116062906,0.47300559,2035.6,2035.1,1.69585649]
[1773116063609,0.47300559,2035.6,2035.1,3.04787094]
[1773116064125,0.47300559,2035.6,2035.1,0.4674225]
[1773116064412,1.70119174,2035.6,2035.1,1.69585468]
[1773116065510,1.22805416,2035.8,2035.2,0.4664225]
[1773116065711,2.96299454,2035.9,2035.2,0.4664225]
[1773116066014,0.47300559,2035.8,2035.2,0.4664225]
[1773116066507,2.96290818,2036.0,2035.4,0.4664225]
[1773116066868,0.47300559,2036.0,2035.6,0.4664225]
[1773116067096,2.96279062,2036.2,2035.6,0.4664225]
[1773116067505,0.47300559,2036.1,2035.3,0.4664225]
[1773116067705,0.47300559,2035.9,2035.2,1.22833537]
[1773116067891,0.47300559,2035.9,2035.3,0.4664225]
[1773116068399,0.47300559,2035.9,2035.4,1.6946823]
[1773116068605,0.47500559,2035.9,2035.4,1.6946823]
[1773116068803,1.70297487,2035.9,2035.4,1.6946823]
[1773116069208,0.47500559,2035.9,2035.5,0.4664225]
[1773116069378,0.002,2035.9,2035.5,0.4664225]
[1773116069574,0.47300559,2035.8,2035.3,0.001]
[1773116069775,0.47300559,2035.8,2035.3,1.22927349]
[1773116070000,0.47300559,2035.8,2035.3,1.69569599]
[1773116071737,0.47300559,2035.7,2035.3,0.001]
[1773116073350,0.47300559,2035.7,2035.1,0.001]
[1773116073717,0.4991157,2035.5,2035.1,0.001]
[1773116075609,1.263,2035.7,2035.3,0.46820536]
[1773116075814,1.263,2035.7,2035.3,1.69647162]
[1773116076009,1.263,2035.7,2035.2,1.22834124]
[1773116076010,2.49107884,2035.7,2035.2,1.22834124]
[1773116076215,1.7621157,2035.7,2035.2,1.22834124]
[1773116076912,1.7621157,2035.7,2035.2,1.6965466]
[1773116078242,1.263,2035.7,2035.3,0.46820536]
[1773116079715,0.002,2035.9,2035.5,1.69640481]
[1773116081338,2.49288115,2036.1,2035.7,0.46820536]
[1773116081339,0.002,2036.1,2035.7,0.46820536]
[1773116081522,0.4991157,2036.0,2035.5,1.69640481]
[1773116081921,0.4991157,2036.0,2035.6,0.46820536]
[1773116082137,0.002,2035.7,2035.6,0.46820536]
[1773116082441,0.5011157,2036.0,2035.6,0.46820536]
[1773116082977,0.002,2036.0,2035.6,0.46820536]
[1773116083826,0.002,2036.0,2035.7,1.22807879]
[1773116084473,0.5011157,2036.0,2035.4,1.69641175]
[1773116087853,1.72707385,2035.9,2035.4,1.69645249]
[1773116088026,0.4991157,2035.9,2035.4,1.69645249]
[1773116089587,0.002,2036.0,2035.5,0.46820536]
[1773116090169,0.5011157,2036.0,2035.5,1.69637265]
[1773116090374,0.5011157,2036.0,2035.5,1.6963911]
[1773116090585,0.5011157,2036.0,2035.5,1.22818574]
[1773116090767,0.5011157,2036.0,2035.4,1.22820237]
[1773116091171,0.5011157,2036.0,2035.3,1.69752315]
[1773116092101,1.22795815,2035.9,2035.3,1.69752315]
[1773116092403,1.72905631,2036.0,2035.4,0.46820536]
[1773116092690,1.72902025,2036.0,2035.5,0.46820536]
[1773116092868,2.99102025,2036.0,2035.5,0.46820536]
[1773116093062,1.72902025,2036.0,2035.5,0.46820536]
[1773116095098,1.72902025,2036.0,2035.6,1.22813912]
[1773116095286,1.72902025,2036.0,2035.6,1.22913912]
[1773116095601,0.002,2035.8,2035.6,1.22913912]
[1773116095803,0.002,2035.8,2035.6,0.001]
[1773116097208,0.45273354,2035.8,2035.6,0.001]
[1773116099711,0.45073354,2035.7,2035.6,0.001]
[1773116100812,0.45073354,2035.7,2035.3,0.001]
[1773116101121,0.45073354,2035.5,2035.1,0.001]
[1773116101486,0.45073354,2035.3,2035.1,0.001]
[1773116101700,0.45073354,2035.5,2035.1,0.001]
[1773116103685,0.47997684,2035.4,2035.1,0.001]
[1773116105926,1.70823873,2035.4,2035.1,0.001]
[1773116106226,0.47997684,2035.3,2035.1,0.001]
[1773116106425,1.70823814,2035.4,2035.1,0.001]
[1773116106616,0.47997684,2035.3,2035.1,0.001]
[1773116109003,0.002,2035.2,2035.1,0.001]
[1773116109821,0.48197684,2035.2,2035.1,0.001]
[1773116110834,0.47997684,2035.1,2034.8,0.001]
[1773116110990,0.47997684,2034.9,2034.6,0.001]
[1773116111196,0.47997684,2034.7,2034.1,1.71169033]
[1773116112043,0.47997684,2034.7,2034.2,1.22997745]
[1773116112545,0.47997684,2034.6,2034.2,0.001]
[1773116112724,0.47997684,2034.3,2033.8,1.71186856]
[1773116112920,1.74697684,2034.5,2033.9,0.48267008]
[1773116113151,1.74697684,2034.5,2033.7,1.71192855]
[1773116113152,0.47997684,2034.3,2033.7,1.71192855]
[1773116113313,0.47997684,2034.3,2033.6,1.23034124]
[1773116113515,0.47997684,2034.3,2033.6,1.71301132]
[1773116113745,0.47997684,2034.3,2033.6,0.001]
[1773116113746,0.47997684,2034.2,2033.6,0.001]
[1773116114114,0.47997684,2034.0,2033.6,0.001]
[1773116114447,0.47997684,2033.8,2033.6,0.001]
[1773116115555,0.47997684,2033.6,2033.2,0.001]
[1773116116045,3.83445268,2033.9,2033.2,1.71325434]
[1773116116046,1.74797684,2033.8,2033.2,1.71325434]
[1773116116346,0.47997684,2034.0,2033.3,0.48267008]
[1773116116545,1.268,2033.9,2033.3,0.48267008]
[1773116116718,0.47997684,2034.2,2033.3,0.48267008]
[1773116116916,1.74897684,2034.2,2033.3,0.48267008]
[1773116117149,1.74897684,2034.6,2033.6,0.48267008]
[1773116117460,1.70862486,2034.8,2033.9,0.48267008]
[1773116117624,1.269,2034.7,2033.9,0.48267008]
[1773116118212,1.269,2034.7,2034.1,0.48267008]
[1773116119650,0.002,2035.2,2034.2,0.48267008]
[1773116119853,1.2303842,2035.2,2034.6,0.48267008]
[1773116120041,0.47997684,2035.1,2034.1,0.48267008]
[1773116120237,1.22850122,2035.0,2034.2,1.22898436]
[1773116120446,1.70847806,2035.0,2034.3,0.48267008]
[1773116120648,0.47997684,2034.9,2034.3,0.48267008]
[1773116121234,0.47997684,2034.9,2034.3,0.45769694]
[1773116121750,0.47997684,2034.9,2034.3,0.45869694]
[1773116121950,0.002,2034.5,2034.3,0.45869694]
[1773116122434,0.002,2034.5,2034.4,1.22886354]
[1773116122861,0.002,2034.5,2034.3,1.22992232]
[1773116123238,0.002,2034.5,2034.3,0.001]
[1773116123531,0.002,2034.5,2034.3,1.22989927]
[1773116125080,0.002,2034.5,2034.3,0.001]
[1773116131280,0.002,2034.5,2034.3,1.22992395]
[1773116132293,0.002,2034.5,2034.3,0.001]
[1773116132792,0.002,2034.5,2034.3,0.48367008]
[1773116132960,0.002,2034.5,2034.3,0.001]
[1773116135411,0.47421224,2034.5,2034.3,0.001]
[1773116136404,0.47221224,2034.4,2034.0,0.001]
[1773116138405,0.002,2034.5,2034.0,0.47667927]
[1773116140489,0.002,2034.5,2034.1,1.22904478]
[1773116140885,0.002,2034.5,2034.1,1.70472405]